[Event "Meltwater Champions Chess Tour 2022: Chessable Masters | Prelims"]
[White "Carlsen, Magnus"]
[Black "Mamedyarov, Shakhriyar"]
[WhiteFideId "1503014"]
[BlackFideId "13401319"]
[WhiteElo "2847"]
[BlackElo "2699"]
[Result "1/2-1/2"]
[Round "02"]
[TimeControl "900+10"]
[Date "2022.05.19"]
[WhiteClock "0:02:08"]
[BlackClock "0:01:55"]

1. c4 {[%clk 0:15:20]}  e5 {[%clk 0:15:20]} 2. g3 {[%clk 0:15:27]}  c6 {[%clk 0:15:05]} 3. d4 {[%clk 0:15:33]}  e4 {[%clk 0:15:14]} 4. d5 {[%clk 0:15:42]}  Nf6 {[%clk 0:15:21]} 5. Bg2 {[%clk 0:15:49]}  Bb4+ {[%clk 0:15:20]} 6. Bd2 {[%clk 0:15:51]}  Qe7 {[%clk 0:15:22]} 7. Nc3 {[%clk 0:14:42]}  O-O {[%clk 0:15:19]} 8. a3 {[%clk 0:14:14]}  Bxc3 {[%clk 0:14:54]} 9. Bxc3 {[%clk 0:14:21]}  cxd5 {[%clk 0:14:57]} 10. cxd5 {[%clk 0:12:16]}  d6 {[%clk 0:14:51]} 11. Nh3 {[%clk 0:12:10]}  Nbd7 {[%clk 0:14:24]} 12. O-O {[%clk 0:12:11]}  Re8 {[%clk 0:13:20]} 13. Nf4 {[%clk 0:10:09]}  Ne5 {[%clk 0:13:03]} 14. f3 {[%clk 0:10:03]}  Ng6 {[%clk 0:10:54]} 15. Nxg6 {[%clk 0:08:04]}  hxg6 {[%clk 0:11:04]} 16. Qd4 {[%clk 0:07:34]}  exf3 {[%clk 0:10:49]} 17. Rxf3 {[%clk 0:06:41]}  Qe4 {[%clk 0:10:26]} 18. Qf2 {[%clk 0:05:35]}  Bf5 {[%clk 0:08:24]} 19. Re1 {[%clk 0:05:04]}  Ng4 {[%clk 0:07:01]} 20. Qd4 {[%clk 0:05:06]}  Qxd4+ {[%clk 0:06:37]} 21. Bxd4 {[%clk 0:05:12]}  Be4 {[%clk 0:06:43]} 22. Rf4 {[%clk 0:03:58]}  Bxg2 {[%clk 0:06:47]} 23. Kxg2 {[%clk 0:04:08]}  Ne3+ {[%clk 0:06:27]} 24. Bxe3 {[%clk 0:04:15]}  Rxe3 {[%clk 0:06:37]} 25. Rb4 {[%clk 0:04:18]}  b6 {[%clk 0:06:42]} 26. Kf2 {[%clk 0:04:27]}  Rae8 {[%clk 0:06:47]} 27. Ra4 {[%clk 0:04:23]}  a5 {[%clk 0:05:52]} 28. Rc4 {[%clk 0:04:31]}  Rb3 {[%clk 0:05:27]} 29. Rc2 {[%clk 0:04:40]}  f5 {[%clk 0:04:41]} 30. Rd1 {[%clk 0:04:34]}  Kf7 {[%clk 0:04:25]} 31. Rdd2 {[%clk 0:04:19]}  Kf6 {[%clk 0:04:31]} 32. Rc6 {[%clk 0:04:28]}  Rd8 {[%clk 0:04:40]} 33. Rdc2 {[%clk 0:04:08]}  g5 {[%clk 0:04:38]} 34. R2c3 {[%clk 0:03:22]}  Rxc3 {[%clk 0:02:17]} 35. bxc3 {[%clk 0:03:13]}  b5 {[%clk 0:01:40]} 36. Rb6 {[%clk 0:03:21]}  Ke5 {[%clk 0:01:35]} 37. Rxb5 {[%clk 0:03:30]}  Rh8 {[%clk 0:01:30]} 38. Kg2 {[%clk 0:03:36]}  Rc8 {[%clk 0:01:37]} 39. Rxa5 {[%clk 0:03:45]}  Rxc3 {[%clk 0:01:46]} 40. a4 {[%clk 0:03:49]}  Ra3 {[%clk 0:01:50]} 41. Ra7 {[%clk 0:02:44]}  g4 {[%clk 0:01:58]} 42. a5 {[%clk 0:02:49]}  g5 {[%clk 0:01:53]} 43. a6 {[%clk 0:02:53]}  Kxd5 {[%clk 0:01:50]} 44. Ra8 {[%clk 0:02:57]}  Ra2 {[%clk 0:01:56]} 45. Kf1 {[%clk 0:02:55]}  f4 {[%clk 0:01:38]} 46. a7 {[%clk 0:03:02]}  f3 {[%clk 0:01:28]} 47. Rg8 {[%clk 0:01:13]}  fxe2+ {[%clk 0:01:33]} 48. Kf2 {[%clk 0:01:21]}  Rxa7 {[%clk 0:01:30]} 49. Rxg5+ {[%clk 0:01:19]}  Ke4 {[%clk 0:01:31]} 50. Kxe2 {[%clk 0:01:27]}  Ra2+ {[%clk 0:01:40]} 51. Kd1 {[%clk 0:01:33]}  Kf3 {[%clk 0:01:25]} 52. Rh5 {[%clk 0:01:25]}  d5 {[%clk 0:01:33]} 53. h3 {[%clk 0:01:30]}  Kxg3 {[%clk 0:01:30]} 54. hxg4 {[%clk 0:01:39]}  Kxg4 {[%clk 0:01:39]} 55. Rxd5 {[%clk 0:01:48]}  Rf2 {[%clk 0:01:47]} 56. Rd2 {[%clk 0:01:58]}  Rxd2+ {[%clk 0:01:55]} 57. Kxd2 {[%clk 0:02:08]} 1/2-1/2


[Site "http://www.chessbomb.com"]

[Event "Meltwater Champions Chess Tour 2022: Chessable Masters | Prelims"]
[White "Van Foreest, Jorden"]
[Black "Hansen, Eric"]
[WhiteFideId "1039784"]
[BlackFideId "2606771"]
[WhiteElo "2645"]
[BlackElo "2579"]
[Result "0-1"]
[Round "02"]
[TimeControl "900+10"]
[Date "2022.05.19"]
[WhiteClock "0:02:07"]
[BlackClock "0:03:46"]

1. e4 {[%clk 0:15:20]}  e5 {[%clk 0:15:20]} 2. Nf3 {[%clk 0:15:26]}  Nc6 {[%clk 0:15:18]} 3. Bc4 {[%clk 0:15:33]}  Bc5 {[%clk 0:15:17]} 4. b4 {[%clk 0:15:41]}  Bxb4 {[%clk 0:15:14]} 5. c3 {[%clk 0:15:50]}  Be7 {[%clk 0:14:13]} 6. d4 {[%clk 0:15:53]}  Na5 {[%clk 0:14:00]} 7. Be2 {[%clk 0:16:01]}  d6 {[%clk 0:14:06]} 8. Qa4+ {[%clk 0:16:09]}  c6 {[%clk 0:14:14]} 9. dxe5 {[%clk 0:16:18]}  dxe5 {[%clk 0:14:03]} 10. Nxe5 {[%clk 0:16:24]}  Nf6 {[%clk 0:13:48]} 11. O-O {[%clk 0:16:31]}  O-O {[%clk 0:13:05]} 12. Bf4 {[%clk 0:16:35]}  b5 {[%clk 0:13:04]} 13. Qc2 {[%clk 0:16:41]}  Re8 {[%clk 0:12:54]} 14. Rd1 {[%clk 0:12:32]}  Qb6 {[%clk 0:12:28]} 15. Nd2 {[%clk 0:12:40]}  Be6 {[%clk 0:12:11]} 16. Ndf3 {[%clk 0:12:38]}  Ng4 {[%clk 0:11:58]} 17. Nxg4 {[%clk 0:10:58]}  Bxg4 {[%clk 0:12:06]} 18. Ne5 {[%clk 0:10:41]}  Be6 {[%clk 0:12:04]} 19. Qd3 {[%clk 0:08:52]}  Rad8 {[%clk 0:11:04]} 20. Qg3 {[%clk 0:09:00]}  Rxd1+ {[%clk 0:11:13]} 21. Rxd1 {[%clk 0:09:08]}  Rd8 {[%clk 0:11:20]} 22. Ra1 {[%clk 0:08:23]}  Qc5 {[%clk 0:06:55]} 23. h4 {[%clk 0:06:27]}  Bf6 {[%clk 0:06:58]} 24. h5 {[%clk 0:06:22]}  h6 {[%clk 0:07:03]} 25. Rc1 {[%clk 0:06:13]}  Qa3 {[%clk 0:06:40]} 26. Nf3 {[%clk 0:05:53]}  Kh8 {[%clk 0:05:58]} 27. e5 {[%clk 0:04:33]}  Be7 {[%clk 0:06:06]} 28. Nd4 {[%clk 0:04:14]}  Qxa2 {[%clk 0:06:13]} 29. Rc2 {[%clk 0:03:34]}  Qb1+ {[%clk 0:06:19]} 30. Kh2 {[%clk 0:03:26]}  Rxd4 {[%clk 0:06:12]} 31. Rc1 {[%clk 0:03:12]}  Qe4 {[%clk 0:06:19]} 32. cxd4 {[%clk 0:03:11]}  Qxe2 {[%clk 0:06:28]} 33. Ra1 {[%clk 0:02:45]}  Qxh5+ {[%clk 0:06:17]} 34. Kg1 {[%clk 0:02:53]}  Nb3 {[%clk 0:05:20]} 35. Rxa7 {[%clk 0:03:00]}  Qd1+ {[%clk 0:05:29]} 36. Kh2 {[%clk 0:03:09]}  Nxd4 {[%clk 0:05:38]} 37. f3 {[%clk 0:02:43]}  Ne2 {[%clk 0:04:12]} 38. Qf2 {[%clk 0:02:51]}  Bh4 {[%clk 0:03:43]} 39. Qe3 {[%clk 0:02:33]}  Nxf4 {[%clk 0:03:49]} 40. Qxf4 {[%clk 0:02:07]}  Bf2 {[%clk 0:03:46]} 0-1


[Site "http://www.chessbomb.com"]

[Event "Meltwater Champions Chess Tour 2022: Chessable Masters | Prelims"]
[White "Mishra, Abhimanyu"]
[Black "Ding, Liren"]
[WhiteFideId "30920019"]
[BlackFideId "8603677"]
[WhiteElo "2524"]
[BlackElo "2836"]
[Result "0-1"]
[Round "02"]
[TimeControl "900+10"]
[Date "2022.05.19"]
[WhiteClock "0:00:15"]
[BlackClock "0:01:05"]

1. e4 {[%clk 0:15:20]}  c6 {[%clk 0:15:20]} 2. d4 {[%clk 0:15:27]}  d5 {[%clk 0:15:27]} 3. e5 {[%clk 0:15:36]}  Bf5 {[%clk 0:15:35]} 4. Nd2 {[%clk 0:15:43]}  e6 {[%clk 0:15:43]} 5. Nb3 {[%clk 0:15:50]}  Nd7 {[%clk 0:15:09]} 6. Nf3 {[%clk 0:15:56]}  f6 {[%clk 0:15:16]} 7. Bd3 {[%clk 0:15:34]}  Bg4 {[%clk 0:14:31]} 8. h3 {[%clk 0:14:11]}  Bh5 {[%clk 0:14:38]} 9. g4 {[%clk 0:13:18]}  Bf7 {[%clk 0:13:55]} 10. Bf4 {[%clk 0:12:40]}  a5 {[%clk 0:13:32]} 11. a4 {[%clk 0:11:47]}  Ne7 {[%clk 0:12:19]} 12. Qe2 {[%clk 0:10:00]}  Ng6 {[%clk 0:08:28]} 13. Bg3 {[%clk 0:09:22]}  Bb4+ {[%clk 0:07:53]} 14. c3 {[%clk 0:09:14]}  Be7 {[%clk 0:08:02]} 15. h4 {[%clk 0:07:57]}  Qb6 {[%clk 0:07:26]} 16. Nbd2 {[%clk 0:06:05]}  h5 {[%clk 0:07:04]} 17. exf6 {[%clk 0:04:20]}  gxf6 {[%clk 0:07:10]} 18. g5 {[%clk 0:04:15]}  O-O-O {[%clk 0:06:57]} 19. O-O-O {[%clk 0:04:04]}  Rde8 {[%clk 0:06:33]} 20. Rde1 {[%clk 0:03:21]}  e5 {[%clk 0:05:09]} 21. dxe5 {[%clk 0:02:23]}  fxe5 {[%clk 0:04:38]} 22. Nxe5 {[%clk 0:02:07]}  Ngxe5 {[%clk 0:03:58]} 23. Bxe5 {[%clk 0:02:14]}  Bxg5 {[%clk 0:01:41]} 24. hxg5 {[%clk 0:01:58]}  Nxe5 {[%clk 0:01:43]} 25. Bf5+ {[%clk 0:01:45]}  Kd8 {[%clk 0:01:50]} 26. f4 {[%clk 0:00:57]}  Ng6 {[%clk 0:00:54]} 27. Qf3 {[%clk 0:01:01]}  Rhf8 {[%clk 0:00:47]} 28. Bc2 {[%clk 0:00:31]}  Rxe1+ {[%clk 0:00:19]} 29. Rxe1 {[%clk 0:00:38]}  Re8 {[%clk 0:00:29]} 30. Rxe8+ {[%clk 0:00:20]}  Bxe8 {[%clk 0:00:39]} 31. Bxg6 {[%clk 0:00:12]}  Bxg6 {[%clk 0:00:42]} 32. f5 {[%clk 0:00:19]}  Be8 {[%clk 0:00:37]} 33. Qf4 {[%clk 0:00:20]}  Qg1+ {[%clk 0:00:31]} 34. Kc2 {[%clk 0:00:28]}  Qg4 {[%clk 0:00:41]} 35. Qxg4 {[%clk 0:00:25]}  hxg4 {[%clk 0:00:50]} 36. Nf1 {[%clk 0:00:26]}  Ke7 {[%clk 0:00:56]} 37. Kd3 {[%clk 0:00:18]}  Kd6 {[%clk 0:00:51]} 38. Ne3 {[%clk 0:00:17]}  Ke5 {[%clk 0:00:48]} 39. g6 {[%clk 0:00:16]}  g3 {[%clk 0:00:46]} 40. Ke2 {[%clk 0:00:16]}  Kf4 {[%clk 0:00:50]} 41. b3 {[%clk 0:00:14]}  b6 {[%clk 0:00:48]} 42. b4 {[%clk 0:00:13]}  d4 {[%clk 0:00:43]} 43. g7 {[%clk 0:00:15]}  Bf7 {[%clk 0:00:51]} 44. bxa5 {[%clk 0:00:12]}  dxe3 {[%clk 0:00:52]} 45. axb6 {[%clk 0:00:19]}  g2 {[%clk 0:00:56]} 46. b7 {[%clk 0:00:15]}  Bc4+ {[%clk 0:01:05]} 0-1


[Site "http://www.chessbomb.com"]

[Event "Meltwater Champions Chess Tour 2022: Chessable Masters | Prelims"]
[White "Shankland, Sam"]
[Black "Anton Guijarro, David"]
[WhiteFideId "2004887"]
[BlackFideId "2285525"]
[WhiteElo "2616"]
[BlackElo "2633"]
[Result "0-1"]
[Round "02"]
[TimeControl "900+10"]
[Date "2022.05.19"]
[WhiteClock "0:00:07"]
[BlackClock "0:00:45"]

1. c4 {[%clk 0:15:20]}  f5 {[%clk 0:15:20]} 2. g3 {[%clk 0:15:19]}  g6 {[%clk 0:15:15]} 3. Nf3 {[%clk 0:15:18]}  Bg7 {[%clk 0:15:18]} 4. d4 {[%clk 0:15:28]}  Nf6 {[%clk 0:15:27]} 5. Bg2 {[%clk 0:15:37]}  O-O {[%clk 0:15:35]} 6. O-O {[%clk 0:15:44]}  d6 {[%clk 0:15:43]} 7. Nc3 {[%clk 0:15:51]}  c6 {[%clk 0:15:50]} 8. b3 {[%clk 0:15:37]}  Na6 {[%clk 0:15:42]} 9. Bb2 {[%clk 0:14:49]}  Nc7 {[%clk 0:15:30]} 10. Qd3 {[%clk 0:14:19]}  Rb8 {[%clk 0:14:17]} 11. e4 {[%clk 0:13:30]}  fxe4 {[%clk 0:14:18]} 12. Nxe4 {[%clk 0:13:37]}  Nxe4 {[%clk 0:13:45]} 13. Qxe4 {[%clk 0:13:45]}  Bf5 {[%clk 0:13:53]} 14. Qe2 {[%clk 0:13:17]}  b5 {[%clk 0:12:36]} 15. Rfe1 {[%clk 0:12:40]}  bxc4 {[%clk 0:11:20]} 16. Qxc4+ {[%clk 0:12:12]}  Nd5 {[%clk 0:11:22]} 17. Ng5 {[%clk 0:11:27]}  Qe8 {[%clk 0:07:33]} 18. Ne6 {[%clk 0:08:00]}  Bxe6 {[%clk 0:07:05]} 19. Rxe6 {[%clk 0:08:08]}  Rxf2 {[%clk 0:06:29]} 20. Kxf2 {[%clk 0:06:10]}  Qf7+ {[%clk 0:06:35]} 21. Kg1 {[%clk 0:06:20]}  Qxe6 {[%clk 0:06:44]} 22. Qxc6 {[%clk 0:06:24]}  Nb4 {[%clk 0:05:10]} 23. Qe4 {[%clk 0:06:20]}  Qxe4 {[%clk 0:05:00]} 24. Bxe4 {[%clk 0:06:30]}  d5 {[%clk 0:04:59]} 25. Bg2 {[%clk 0:06:04]}  e6 {[%clk 0:05:00]} 26. Bh3 {[%clk 0:05:53]}  Kf7 {[%clk 0:04:50]} 27. Rc1 {[%clk 0:03:45]}  Rb7 {[%clk 0:04:11]} 28. Kg2 {[%clk 0:03:03]}  a5 {[%clk 0:03:33]} 29. Bc3 {[%clk 0:00:54]}  Nxa2 {[%clk 0:02:37]} 30. Rf1+ {[%clk 0:01:03]}  Ke7 {[%clk 0:02:45]} 31. Bxa5 {[%clk 0:00:32]}  Bxd4 {[%clk 0:02:27]} 32. Rf3 {[%clk 0:00:27]}  e5 {[%clk 0:02:18]} 33. Bd2 {[%clk 0:00:36]}  e4 {[%clk 0:01:16]} 34. Bg5+ {[%clk 0:00:45]}  Kd6 {[%clk 0:01:24]} 35. Rf8 {[%clk 0:00:52]}  Rxb3 {[%clk 0:01:10]} 36. Rd8+ {[%clk 0:01:01]}  Kc6 {[%clk 0:01:15]} 37. Bd7+ {[%clk 0:00:53]}  Kc5 {[%clk 0:00:50]} 38. Rc8+ {[%clk 0:00:37]}  Kd6 {[%clk 0:00:53]} 39. Ba4 {[%clk 0:00:43]}  Rb6 {[%clk 0:00:24]} 40. Bf4+ {[%clk 0:00:23]}  Ke6 {[%clk 0:00:21]} 41. Re8+ {[%clk 0:00:17]}  Kf7 {[%clk 0:00:27]} 42. Ra8 {[%clk 0:00:19]}  Nc3 {[%clk 0:00:34]} 43. Bd7 {[%clk 0:00:18]}  Ke7 {[%clk 0:00:37]} 44. Bh3 {[%clk 0:00:16]}  Rb2+ {[%clk 0:00:43]} 45. Kf1 {[%clk 0:00:25]}  e3 {[%clk 0:00:48]} 46. Bg5+ {[%clk 0:00:07]}  Kf7 {[%clk 0:00:45]} 0-1


[Site "http://www.chessbomb.com"]

[Event "Meltwater Champions Chess Tour 2022: Chessable Masters | Prelims"]
[White "Vidit, Santosh Gujrathi"]
[Black "Jones, Gawain C B"]
[WhiteFideId "5029465"]
[BlackFideId "409561"]
[WhiteElo "2617"]
[BlackElo "2630"]
[Result "1/2-1/2"]
[Round "02"]
[TimeControl "900+10"]
[Date "2022.05.19"]
[WhiteClock "0:02:45"]
[BlackClock "0:04:17"]

1. d4 {[%clk 0:15:20]}  Nf6 {[%clk 0:15:20]} 2. c4 {[%clk 0:15:28]}  g6 {[%clk 0:15:28]} 3. Nc3 {[%clk 0:15:36]}  Bg7 {[%clk 0:15:35]} 4. e4 {[%clk 0:15:45]}  d6 {[%clk 0:15:44]} 5. Nf3 {[%clk 0:15:53]}  O-O {[%clk 0:15:53]} 6. Be2 {[%clk 0:16:02]}  e5 {[%clk 0:16:02]} 7. O-O {[%clk 0:16:08]}  Nc6 {[%clk 0:16:11]} 8. d5 {[%clk 0:16:16]}  Ne7 {[%clk 0:16:20]} 9. b4 {[%clk 0:16:25]}  a5 {[%clk 0:16:28]} 10. bxa5 {[%clk 0:16:33]}  Rxa5 {[%clk 0:16:37]} 11. a4 {[%clk 0:16:39]}  Ra8 {[%clk 0:16:44]} 12. c5 {[%clk 0:15:29]}  dxc5 {[%clk 0:16:51]} 13. Be3 {[%clk 0:15:38]}  b6 {[%clk 0:16:59]} 14. a5 {[%clk 0:15:47]}  Bg4 {[%clk 0:16:34]} 15. Nd2 {[%clk 0:15:09]}  Bxe2 {[%clk 0:15:44]} 16. Qxe2 {[%clk 0:15:18]}  Nc8 {[%clk 0:14:56]} 17. axb6 {[%clk 0:12:18]}  Rxa1 {[%clk 0:15:02]} 18. Rxa1 {[%clk 0:12:28]}  cxb6 {[%clk 0:15:10]} 19. Nc4 {[%clk 0:10:36]}  Ne8 {[%clk 0:12:56]} 20. Ra8 {[%clk 0:09:34]}  Qd7 {[%clk 0:12:17]} 21. f3 {[%clk 0:05:22]}  Ned6 {[%clk 0:12:18]} 22. Nxd6 {[%clk 0:04:14]}  Nxd6 {[%clk 0:12:25]} 23. Qa6 {[%clk 0:04:21]}  f5 {[%clk 0:06:38]} 24. Rxf8+ {[%clk 0:03:15]}  Bxf8 {[%clk 0:06:45]} 25. Qxb6 {[%clk 0:03:00]}  fxe4 {[%clk 0:04:32]} 26. Nxe4 {[%clk 0:02:47]}  Nxe4 {[%clk 0:04:34]} 27. fxe4 {[%clk 0:02:57]}  Qg4 {[%clk 0:03:56]} 28. h3 {[%clk 0:02:25]}  Qxe4 {[%clk 0:04:02]} 29. Qe6+ {[%clk 0:02:23]}  Kg7 {[%clk 0:04:00]} 30. Qd7+ {[%clk 0:02:30]}  Kg8 {[%clk 0:04:07]} 31. Qe6+ {[%clk 0:02:39]}  Kg7 {[%clk 0:04:15]} 32. Qd7+ {[%clk 0:02:46]}  Kg8 {[%clk 0:04:17]} 33. Qe6+ {[%clk 0:02:45]} 1/2-1/2


[Site "http://www.chessbomb.com"]

[Event "Meltwater Champions Chess Tour 2022: Chessable Masters | Prelims"]
[White "Wei, Yi"]
[Black "Harikrishna, Pentala"]
[WhiteFideId "8603405"]
[BlackFideId "5007003"]
[WhiteElo "2752"]
[BlackElo "2624"]
[Result "1-0"]
[Round "02"]
[TimeControl "900+10"]
[Date "2022.05.19"]
[WhiteClock "0:02:31"]
[BlackClock "0:04:01"]

1. d4 {[%clk 0:15:20]}  Nf6 {[%clk 0:15:20]} 2. c4 {[%clk 0:15:28]}  e6 {[%clk 0:15:28]} 3. Nf3 {[%clk 0:15:36]}  d5 {[%clk 0:15:35]} 4. Nc3 {[%clk 0:15:45]}  Bb4 {[%clk 0:15:41]} 5. Qa4+ {[%clk 0:15:50]}  Nc6 {[%clk 0:15:49]} 6. e3 {[%clk 0:15:59]}  O-O {[%clk 0:15:53]} 7. Qc2 {[%clk 0:16:08]}  Na5 {[%clk 0:15:44]} 8. c5 {[%clk 0:16:03]}  b6 {[%clk 0:15:49]} 9. Bd2 {[%clk 0:14:57]}  bxc5 {[%clk 0:14:56]} 10. a3 {[%clk 0:13:37]}  Bxc3 {[%clk 0:14:48]} 11. Bxc3 {[%clk 0:13:31]}  Nc6 {[%clk 0:14:52]} 12. dxc5 {[%clk 0:13:10]}  Ne4 {[%clk 0:13:15]} 13. b4 {[%clk 0:13:07]}  Nxc3 {[%clk 0:11:57]} 14. Qxc3 {[%clk 0:13:13]}  a6 {[%clk 0:12:01]} 15. Be2 {[%clk 0:11:05]}  Qf6 {[%clk 0:10:57]} 16. Qxf6 {[%clk 0:08:13]}  gxf6 {[%clk 0:11:04]} 17. Kd2 {[%clk 0:08:22]}  Bd7 {[%clk 0:11:05]} 18. Kc3 {[%clk 0:08:16]}  Rfb8 {[%clk 0:10:49]} 19. Rhb1 {[%clk 0:08:15]}  e5 {[%clk 0:10:23]} 20. a4 {[%clk 0:04:44]}  Ne7 {[%clk 0:10:06]} 21. Kd2 {[%clk 0:04:49]}  Kf8 {[%clk 0:09:10]} 22. Ne1 {[%clk 0:04:48]}  Ra7 {[%clk 0:09:02]} 23. Nc2 {[%clk 0:04:51]}  c6 {[%clk 0:08:42]} 24. g4 {[%clk 0:03:57]}  h6 {[%clk 0:08:29]} 25. f4 {[%clk 0:03:56]}  f5 {[%clk 0:07:27]} 26. fxe5 {[%clk 0:03:41]}  fxg4 {[%clk 0:07:33]} 27. Nd4 {[%clk 0:03:41]}  h5 {[%clk 0:07:05]} 28. Bd3 {[%clk 0:03:19]}  Kg7 {[%clk 0:06:53]} 29. b5 {[%clk 0:03:09]}  axb5 {[%clk 0:05:07]} 30. axb5 {[%clk 0:03:17]}  Rxa1 {[%clk 0:05:16]} 31. Rxa1 {[%clk 0:03:26]}  cxb5 {[%clk 0:05:23]} 32. Ra7 {[%clk 0:03:35]}  Rd8 {[%clk 0:05:31]} 33. e6 {[%clk 0:03:44]}  fxe6 {[%clk 0:05:06]} 34. c6 {[%clk 0:03:14]}  Bc8 {[%clk 0:03:59]} 35. Rxe7+ {[%clk 0:03:20]}  Kf6 {[%clk 0:04:08]} 36. Rh7 {[%clk 0:03:18]}  e5 {[%clk 0:04:16]} 37. Nxb5 {[%clk 0:02:32]}  Kg5 {[%clk 0:04:01]} 38. c7 {[%clk 0:02:31]} 1-0


[Site "http://www.chessbomb.com"]

[Event "Meltwater Champions Chess Tour 2022: Chessable Masters | Prelims"]
[White "Giri, Anish"]
[Black "Praggnanandhaa, R"]
[WhiteFideId "24116068"]
[BlackFideId "25059530"]
[WhiteElo "2730"]
[BlackElo "1927"]
[Result "1-0"]
[Round "02"]
[TimeControl "900+10"]
[Date "2022.05.19"]
[WhiteClock "0:02:38"]
[BlackClock "0:00:06"]

1. c4 {[%clk 0:15:20]}  e5 {[%clk 0:15:20]} 2. Nc3 {[%clk 0:15:28]}  Bb4 {[%clk 0:15:19]} 3. Qc2 {[%clk 0:15:36]}  Nf6 {[%clk 0:15:22]} 4. Nf3 {[%clk 0:15:44]}  Bxc3 {[%clk 0:15:30]} 5. Qxc3 {[%clk 0:15:53]}  d6 {[%clk 0:15:39]} 6. b4 {[%clk 0:15:30]}  e4 {[%clk 0:15:05]} 7. Ng5 {[%clk 0:15:34]}  h6 {[%clk 0:15:12]} 8. Nh3 {[%clk 0:15:42]}  Bxh3 {[%clk 0:15:11]} 9. gxh3 {[%clk 0:15:17]}  Nbd7 {[%clk 0:13:36]} 10. Bb2 {[%clk 0:14:51]}  Qe7 {[%clk 0:13:41]} 11. Rg1 {[%clk 0:14:33]}  Rg8 {[%clk 0:12:31]} 12. O-O-O {[%clk 0:13:56]}  O-O-O {[%clk 0:12:38]} 13. Kb1 {[%clk 0:13:15]}  Kb8 {[%clk 0:12:30]} 14. Ka1 {[%clk 0:12:59]}  c5 {[%clk 0:08:55]} 15. bxc5 {[%clk 0:12:28]}  Nxc5 {[%clk 0:08:02]} 16. Qa3 {[%clk 0:11:58]}  Nfd7 {[%clk 0:07:26]} 17. d4 {[%clk 0:10:55]}  exd3 {[%clk 0:07:33]} 18. exd3 {[%clk 0:11:05]}  Nb6 {[%clk 0:07:32]} 19. d4 {[%clk 0:08:44]}  Nca4 {[%clk 0:06:57]} 20. Bc1 {[%clk 0:08:48]}  Qf6 {[%clk 0:06:21]} 21. Be3 {[%clk 0:08:47]}  Rc8 {[%clk 0:06:13]} 22. Kb1 {[%clk 0:07:29]}  Rc6 {[%clk 0:04:04]} 23. Bd3 {[%clk 0:05:17]}  Rgc8 {[%clk 0:03:17]} 24. Rc1 {[%clk 0:05:19]}  g6 {[%clk 0:02:57]} 25. Rc2 {[%clk 0:03:35]}  Nxc4 {[%clk 0:01:01]} 26. Qxa4 {[%clk 0:03:39]}  Ra6 {[%clk 0:01:05]} 27. Qxc4 {[%clk 0:03:19]}  Rxc4 {[%clk 0:01:10]} 28. Rxc4 {[%clk 0:03:23]}  d5 {[%clk 0:00:27]} 29. Rc5 {[%clk 0:02:45]}  Rb6+ {[%clk 0:00:17]} 30. Ka1 {[%clk 0:02:54]}  Qd6 {[%clk 0:00:26]} 31. Rg4 {[%clk 0:02:40]}  g5 {[%clk 0:00:06]} 32. Bf4 {[%clk 0:02:38]} 1-0


[Site "http://www.chessbomb.com"]

[Event "Meltwater Champions Chess Tour 2022: Chessable Masters | Prelims"]
[White "Tari, Aryan"]
[Black "Grandelius, Nils"]
[WhiteFideId "1510045"]
[BlackFideId "1710400"]
[WhiteElo "2531"]
[BlackElo "2652"]
[Result "1/2-1/2"]
[Round "02"]
[TimeControl "900+10"]
[Date "2022.05.19"]
[WhiteClock "0:00:44"]
[BlackClock "0:00:45"]

1. e4 {[%clk 0:15:20]}  c5 {[%clk 0:15:20]} 2. Nf3 {[%clk 0:15:28]}  d6 {[%clk 0:15:26]} 3. Bb5+ {[%clk 0:15:36]}  Bd7 {[%clk 0:15:31]} 4. Bxd7+ {[%clk 0:15:45]}  Nxd7 {[%clk 0:15:36]} 5. O-O {[%clk 0:15:52]}  Ngf6 {[%clk 0:15:42]} 6. Qe2 {[%clk 0:16:02]}  e6 {[%clk 0:15:43]} 7. b3 {[%clk 0:16:11]}  Be7 {[%clk 0:15:16]} 8. Bb2 {[%clk 0:16:19]}  O-O {[%clk 0:15:25]} 9. c4 {[%clk 0:16:21]}  a6 {[%clk 0:14:19]} 10. Nc3 {[%clk 0:15:35]}  Ne5 {[%clk 0:14:08]} 11. Nxe5 {[%clk 0:15:41]}  dxe5 {[%clk 0:14:18]} 12. f4 {[%clk 0:15:51]}  exf4 {[%clk 0:13:22]} 13. e5 {[%clk 0:15:30]}  Nd7 {[%clk 0:13:31]} 14. Rxf4 {[%clk 0:14:45]}  Qc7 {[%clk 0:13:33]} 15. Re1 {[%clk 0:14:09]}  Rae8 {[%clk 0:12:35]} 16. Re4 {[%clk 0:11:53]}  Qc6 {[%clk 0:09:23]} 17. Nd1 {[%clk 0:10:16]}  Bg5 {[%clk 0:05:59]} 18. Nf2 {[%clk 0:07:56]}  f5 {[%clk 0:05:08]} 19. exf6 {[%clk 0:08:02]}  Nxf6 {[%clk 0:05:18]} 20. Bxf6 {[%clk 0:05:43]}  Bxf6 {[%clk 0:05:14]} 21. Rxe6 {[%clk 0:04:53]}  Rxe6 {[%clk 0:05:13]} 22. Qxe6+ {[%clk 0:05:03]}  Qxe6 {[%clk 0:05:22]} 23. Rxe6 {[%clk 0:05:13]}  Bd4 {[%clk 0:05:28]} 24. Re2 {[%clk 0:05:22]}  b5 {[%clk 0:05:35]} 25. d3 {[%clk 0:05:23]}  Rd8 {[%clk 0:04:32]} 26. cxb5 {[%clk 0:04:06]}  axb5 {[%clk 0:04:39]} 27. Rc2 {[%clk 0:04:13]}  b4 {[%clk 0:02:32]} 28. Kf1 {[%clk 0:04:20]}  Bxf2 {[%clk 0:02:40]} 29. Kxf2 {[%clk 0:04:24]}  Rxd3 {[%clk 0:02:50]} 30. Rxc5 {[%clk 0:04:29]}  Rd2+ {[%clk 0:02:59]} 31. Kf3 {[%clk 0:04:36]}  Rxa2 {[%clk 0:03:08]} 32. Rb5 {[%clk 0:04:42]}  Rb2 {[%clk 0:03:06]} 33. Rxb4 {[%clk 0:04:50]}  h5 {[%clk 0:03:11]} 34. h4 {[%clk 0:04:37]}  Kh7 {[%clk 0:03:13]} 35. g3 {[%clk 0:04:29]}  Kh6 {[%clk 0:03:18]} 36. Rb8 {[%clk 0:04:27]}  g6 {[%clk 0:03:21]} 37. b4 {[%clk 0:04:10]}  Rb1 {[%clk 0:03:20]} 38. b5 {[%clk 0:04:11]}  Rb4 {[%clk 0:02:15]} 39. b6 {[%clk 0:02:52]}  Kg7 {[%clk 0:02:08]} 40. Ke3 {[%clk 0:02:51]}  Rg4 {[%clk 0:01:50]} 41. Kf2 {[%clk 0:02:06]}  Rb4 {[%clk 0:01:41]} 42. Kf3 {[%clk 0:02:15]}  Kf6 {[%clk 0:01:19]} 43. Ke3 {[%clk 0:02:10]}  Kf5 {[%clk 0:00:30]} 44. b7 {[%clk 0:00:53]}  Kg4 {[%clk 0:00:38]} 45. Rg8 {[%clk 0:00:58]}  Rb3+ {[%clk 0:00:26]} 46. Ke4 {[%clk 0:00:54]}  Rb4+ {[%clk 0:00:30]} 47. Ke5 {[%clk 0:00:58]}  Rb5+ {[%clk 0:00:31]} 48. Kf6 {[%clk 0:00:22]}  Rb6+ {[%clk 0:00:40]} 49. Ke5 {[%clk 0:00:31]}  Rb5+ {[%clk 0:00:49]} 50. Kf6 {[%clk 0:00:17]}  Rb6+ {[%clk 0:00:58]} 51. Kf7 {[%clk 0:00:25]}  Rxb7+ {[%clk 0:01:05]} 52. Kxg6 {[%clk 0:00:34]}  Kxg3 {[%clk 0:00:43]} 53. Kxh5+ {[%clk 0:00:44]}  Kh3 {[%clk 0:00:29]} 54. Rg6 {[%clk 0:00:17]}  Rh7+ {[%clk 0:00:28]} 55. Kg5 {[%clk 0:00:25]}  Rxh4 {[%clk 0:00:36]} 56. Rh6 {[%clk 0:00:34]}  Rxh6 {[%clk 0:00:45]} 57. Kxh6 {[%clk 0:00:44]} 1/2-1/2


[Site "http://www.chessbomb.com"]